[Event "Early-Titled-Tuesday-Blitz-September-12-2023"]
[Site "Chess.com"]
[Date "2023.09.12"]
[Round "2"]
[White "marik_spb"]
[Black "chessdjw"]
[Result "0-1"]
[WhiteElo "2418"]
[BlackElo "2743"]
[TimeControl "180+1"]
[EndTime "8:16:58 PDT"]
[Termination "chessdjw won by resignation"]

1. e4 {[%clk 0:03:00.6]} 1... e5 {[%clk 0:02:59]} 2. Nf3 {[%clk 0:03:00.5]} 2...
Nc6 {[%clk 0:02:58.1]} 3. Bc4 {[%clk 0:03:01]} 3... Nf6 {[%clk 0:02:58.1]} 4. d4
{[%clk 0:03:00.6]} 4... exd4 {[%clk 0:02:56.5]} 5. O-O {[%clk 0:03:01.1]} 5...
Nxe4 {[%clk 0:02:49.1]} 6. Re1 {[%clk 0:03:01.4]} 6... d5 {[%clk 0:02:49.4]} 7.
Bxd5 {[%clk 0:03:02]} 7... Qxd5 {[%clk 0:02:49.4]} 8. Nc3 {[%clk 0:03:02.6]}
8... Qd7 {[%clk 0:02:48.9]} 9. Nxe4 {[%clk 0:03:01.4]} 9... Be7 {[%clk
0:02:48.3]} 10. Bg5 {[%clk 0:02:17.3]} 10... O-O {[%clk 0:02:47.9]} 11. Bxe7
{[%clk 0:02:09.8]} 11... Qxe7 {[%clk 0:02:46.6]} 12. Nxd4 {[%clk 0:02:10.1]}
12... Bd7 {[%clk 0:02:44.6]} 13. Qh5 {[%clk 0:01:51.1]} 13... Qb4 {[%clk
0:02:10]} 14. c3 {[%clk 0:00:46.7]} 14... Qxb2 {[%clk 0:02:00.6]} 15. Rab1
{[%clk 0:00:46.9]} 15... Qxa2 {[%clk 0:01:56]} 16. Rxb7 {[%clk 0:00:47.1]} 16...
Nxd4 {[%clk 0:01:45.5]} 17. cxd4 {[%clk 0:00:48]} 17... Bc6 {[%clk 0:01:44.4]}
18. Ng5 {[%clk 0:00:43.7]} 18... h6 {[%clk 0:01:41.4]} 19. Rxc7 {[%clk
0:00:43.8]} 19... Qa5 {[%clk 0:01:33.2]} 20. Rc1 {[%clk 0:00:07.3]} 20... Qxc7
{[%clk 0:01:31.1]} 21. d5 {[%clk 0:00:07.5]} 21... Qf4 {[%clk 0:01:25.5]} 22.
Rxc6 {[%clk 0:00:07.3]} 22... Qxg5 {[%clk 0:01:26]} 23. Qf3 {[%clk 0:00:07]}
23... Rac8 {[%clk 0:01:20.4]} 24. h3 {[%clk 0:00:07.1]} 24... Rxc6 {[%clk
0:01:19.8]} 25. dxc6 {[%clk 0:00:08]} 25... Qc5 {[%clk 0:01:20.3]} 26. g4 {[%clk
0:00:07.8]} 26... a5 {[%clk 0:01:20]} 27. Kg2 {[%clk 0:00:07.6]} 27... a4 {[%clk
0:01:20.3]} 28. Kg3 {[%clk 0:00:08.5]} 28... a3 {[%clk 0:01:20.8]} 29. Qb3
{[%clk 0:00:08]} 29... Qxc6 {[%clk 0:01:15.8]} 30. Qxa3 {[%clk 0:00:07.6]} 30...
Rd8 {[%clk 0:01:16.5]} 31. f3 {[%clk 0:00:05.3]} 31... Qd6+ {[%clk 0:01:16.7]}
32. Qxd6 {[%clk 0:00:05.2]} 32... Rxd6 {[%clk 0:01:17.6]} 0-1

[Event "Early-Titled-Tuesday-Blitz-September-12-2023"]
[Site "Chess.com"]
[Date "2023.09.12"]
[Round "2"]
[White "Beca95"]
[Black "ItsCheckM8Mate"]
[Result "1-0"]
[WhiteElo "2956"]
[BlackElo "2430"]
[TimeControl "180+1"]
[EndTime "8:16:59 PDT"]
[Termination "Beca95 won by checkmate"]

1. e4 {[%clk 0:03:00.9]} 1... c6 {[%clk 0:02:53.3]} 2. Nf3 {[%clk 0:02:59.3]}
2... d5 {[%clk 0:02:53.1]} 3. d3 {[%clk 0:03:00]} 3... g6 {[%clk 0:02:47.8]} 4.
e5 {[%clk 0:02:59.1]} 4... Bg7 {[%clk 0:02:46.8]} 5. h3 {[%clk 0:02:58.4]} 5...
c5 {[%clk 0:02:42.2]} 6. c3 {[%clk 0:02:58.5]} 6... d4 {[%clk 0:02:39.3]} 7.
cxd4 {[%clk 0:02:55.6]} 7... cxd4 {[%clk 0:02:39.2]} 8. Bf4 {[%clk 0:02:51.4]}
8... Nc6 {[%clk 0:02:37.9]} 9. Nbd2 {[%clk 0:02:51.9]} 9... Qa5 {[%clk
0:02:17.1]} 10. Qe2 {[%clk 0:02:16.5]} 10... Be6 {[%clk 0:02:05.3]} 11. a3
{[%clk 0:02:07.3]} 11... Bd5 {[%clk 0:01:58.2]} 12. g4 {[%clk 0:01:51.8]} 12...
Bxf3 {[%clk 0:01:51.2]} 13. Qxf3 {[%clk 0:01:46.9]} 13... Bxe5 {[%clk
0:01:50.2]} 14. Bg2 {[%clk 0:01:46.2]} 14... Nf6 {[%clk 0:01:29.8]} 15. O-O
{[%clk 0:01:38.4]} 15... Bxf4 {[%clk 0:01:24.2]} 16. Qxf4 {[%clk 0:01:39.3]}
16... O-O {[%clk 0:01:24.5]} 17. Bxc6 {[%clk 0:01:30.9]} 17... bxc6 {[%clk
0:01:24.4]} 18. Nc4 {[%clk 0:01:31.3]} 18... Qd5 {[%clk 0:01:18.8]} 19. Rae1
{[%clk 0:01:30.6]} 19... Rfe8 {[%clk 0:01:02.2]} 20. Re5 {[%clk 0:01:29.7]}
20... Qd7 {[%clk 0:01:00.2]} 21. Rfe1 {[%clk 0:01:30.1]} 21... Kg7 {[%clk
0:00:52.2]} 22. g5 {[%clk 0:01:09.1]} 22... Nh5 {[%clk 0:00:51.7]} 23. Qf3
{[%clk 0:01:07.5]} 23... f6 {[%clk 0:00:41]} 24. Rc5 {[%clk 0:00:46.9]} 24...
fxg5 {[%clk 0:00:36.7]} 25. Rxg5 {[%clk 0:00:39.5]} 25... Rf8 {[%clk 0:00:34.6]}
26. Qg4 {[%clk 0:00:39.4]} 26... Qxg4+ {[%clk 0:00:26.9]} 27. hxg4 {[%clk
0:00:40.3]} 27... Nf4 {[%clk 0:00:24.4]} 28. Rxe7+ {[%clk 0:00:39.5]} 28... Kf6
{[%clk 0:00:23.3]} 29. Rge5 {[%clk 0:00:40.1]} 29... Nxd3 {[%clk 0:00:22.1]} 30.
g5# {[%clk 0:00:40.6]} 1-0

[Event "Early-Titled-Tuesday-Blitz-September-12-2023"]
[Site "Chess.com"]
[Date "2023.09.12"]
[Round "2"]
[White "enestnrvrd"]
[Black "AleksandrAleksikov"]
[Result "1-0"]
[WhiteElo "2698"]
[BlackElo "2283"]
[TimeControl "180+1"]
[EndTime "8:17:04 PDT"]
[Termination "enestnrvrd won on time"]

1. Nf3 {[%clk 0:02:56.7]} 1... Nf6 {[%clk 0:02:59]} 2. c4 {[%clk 0:02:54.7]}
2... g6 {[%clk 0:02:58.8]} 3. Nc3 {[%clk 0:02:55.2]} 3... Bg7 {[%clk 0:02:58.8]}
4. g3 {[%clk 0:02:55.9]} 4... d6 {[%clk 0:02:58.7]} 5. Bg2 {[%clk 0:02:56.4]}
5... O-O {[%clk 0:02:58.6]} 6. O-O {[%clk 0:02:57]} 6... c6 {[%clk 0:02:58.2]}
7. d4 {[%clk 0:02:57.4]} 7... Qa5 {[%clk 0:02:56.4]} 8. e4 {[%clk 0:02:57.5]}
8... e5 {[%clk 0:02:54.5]} 9. d5 {[%clk 0:02:55.7]} 9... cxd5 {[%clk 0:02:52.2]}
10. cxd5 {[%clk 0:02:54.9]} 10... b5 {[%clk 0:02:47.6]} 11. Nd2 {[%clk
0:02:50.4]} 11... a6 {[%clk 0:02:35.9]} 12. Nb3 {[%clk 0:02:49.4]} 12... Qd8
{[%clk 0:02:32.5]} 13. h3 {[%clk 0:02:47.2]} 13... Nbd7 {[%clk 0:02:31.1]} 14.
Be3 {[%clk 0:02:47.2]} 14... Nb6 {[%clk 0:02:13.7]} 15. Na5 {[%clk 0:02:20.7]}
15... Nbxd5 {[%clk 0:02:02.4]} 16. Nxd5 {[%clk 0:02:17.2]} 16... Qxa5 {[%clk
0:02:00.9]} 17. Nb6 {[%clk 0:02:02.7]} 17... Rb8 {[%clk 0:01:48]} 18. Qxd6
{[%clk 0:02:01]} 18... Be6 {[%clk 0:01:42]} 19. Rfd1 {[%clk 0:01:55.5]} 19...
Rfe8 {[%clk 0:01:30.5]} 20. a4 {[%clk 0:01:34.8]} 20... bxa4 {[%clk 0:01:14.8]}
21. Rxa4 {[%clk 0:01:25.4]} 21... Qb5 {[%clk 0:01:12.6]} 22. Raa1 {[%clk
0:00:54.5]} 22... Bf8 {[%clk 0:00:14.7]} 23. Qc7 {[%clk 0:00:53.3]} 23... Qb4
{[%clk 0:00:02.8]} 24. Nd5 {[%clk 0:00:50.1]} 24... Nxd5 {[%clk 0:00:01.5]} 25.
exd5 {[%clk 0:00:50.7]} 1-0

[Event "Early-Titled-Tuesday-Blitz-September-12-2023"]
[Site "Chess.com"]
[Date "2023.09.12"]
[Round "2"]
[White "Jospem"]
[Black "The_Machine04"]
[Result "1-0"]
[WhiteElo "3114"]
[BlackElo "2657"]
[TimeControl "180+1"]
[EndTime "8:17:05 PDT"]
[Termination "Jospem won by resignation"]

1. e4 {[%clk 0:03:00.9]} 1... d6 {[%clk 0:02:59.4]} 2. d4 {[%clk 0:02:59.1]}
2... Nf6 {[%clk 0:02:59.4]} 3. Bd3 {[%clk 0:02:59.6]} 3... e5 {[%clk 0:02:59.4]}
4. c3 {[%clk 0:02:59.7]} 4... Nbd7 {[%clk 0:02:58.5]} 5. Nf3 {[%clk 0:02:59.7]}
5... d5 {[%clk 0:02:58.7]} 6. Nxe5 {[%clk 0:02:59.1]} 6... Nxe5 {[%clk
0:02:51.8]} 7. dxe5 {[%clk 0:03:00]} 7... Nxe4 {[%clk 0:02:46.5]} 8. O-O {[%clk
0:02:56.9]} 8... Be6 {[%clk 0:02:30]} 9. Nd2 {[%clk 0:02:44.7]} 9... Nxd2 {[%clk
0:02:11.9]} 10. Bxd2 {[%clk 0:02:45.6]} 10... Qd7 {[%clk 0:02:11.5]} 11. b4
{[%clk 0:02:43.1]} 11... Be7 {[%clk 0:01:55.4]} 12. Be3 {[%clk 0:02:43.1]} 12...
a5 {[%clk 0:01:46.8]} 13. b5 {[%clk 0:02:07.5]} 13... a4 {[%clk 0:01:38.1]} 14.
Qc2 {[%clk 0:02:02.8]} 14... a3 {[%clk 0:01:34.9]} 15. f4 {[%clk 0:01:59.1]}
15... g6 {[%clk 0:01:30]} 16. f5 {[%clk 0:01:46.4]} 16... gxf5 {[%clk
0:01:20.9]} 17. Bxf5 {[%clk 0:01:47.3]} 17... Qxb5 {[%clk 0:01:16.9]} 18. Rab1
{[%clk 0:01:46.1]} 18... Qc6 {[%clk 0:01:11.8]} 19. Bd3 {[%clk 0:01:46.5]} 19...
Ra5 {[%clk 0:01:03.8]} 20. Kh1 {[%clk 0:01:43.8]} 20... Rg8 {[%clk 0:00:59.6]}
21. Bd4 {[%clk 0:01:40.4]} 21... Bc5 {[%clk 0:00:57.1]} 22. Qf2 {[%clk
0:01:26.3]} 22... b6 {[%clk 0:00:42.5]} 23. h3 {[%clk 0:01:14.2]} 23... h5
{[%clk 0:00:37.7]} 24. Qe3 {[%clk 0:01:01.1]} 24... h4 {[%clk 0:00:33.3]} 25.
Rf3 {[%clk 0:00:45.2]} 25... Bxd4 {[%clk 0:00:29.7]} 26. cxd4 {[%clk 0:00:46.1]}
26... Kd8 {[%clk 0:00:19.6]} 27. Qh6 {[%clk 0:00:45]} 27... Rg3 {[%clk
0:00:14.1]} 28. Qxh4+ {[%clk 0:00:44.9]} 1-0

[Event "Early-Titled-Tuesday-Blitz-September-12-2023"]
[Site "Chess.com"]
[Date "2023.09.12"]
[Round "2"]
[White "Rutricks"]
[Black "Witty_Alien"]
[Result "1-0"]
[WhiteElo "2677"]
[BlackElo "2161"]
[TimeControl "180+1"]
[EndTime "8:17:06 PDT"]
[Termination "Rutricks won by resignation"]

1. e4 {[%clk 0:03:00.9]} 1... c5 {[%clk 0:03:00.2]} 2. Nf3 {[%clk 0:02:59.2]}
2... d6 {[%clk 0:03:00.6]} 3. d4 {[%clk 0:02:59.1]} 3... cxd4 {[%clk 0:03:01.1]}
4. Nxd4 {[%clk 0:03:00]} 4... Nf6 {[%clk 0:03:01.3]} 5. Nc3 {[%clk 0:03:00.2]}
5... a6 {[%clk 0:03:01.9]} 6. Rg1 {[%clk 0:03:00.4]} 6... g6 {[%clk 0:03:01.8]}
7. g4 {[%clk 0:03:00.2]} 7... Bg7 {[%clk 0:03:02.4]} 8. g5 {[%clk 0:03:00.2]}
8... Nfd7 {[%clk 0:03:02.2]} 9. Be3 {[%clk 0:03:00.2]} 9... Nc6 {[%clk
0:03:00.3]} 10. Qd2 {[%clk 0:02:57.9]} 10... O-O {[%clk 0:02:41.4]} 11. O-O-O
{[%clk 0:02:57.6]} 11... Na5 {[%clk 0:02:29.3]} 12. Nd5 {[%clk 0:02:51.6]} 12...
b5 {[%clk 0:02:23.3]} 13. Nxe7+ {[%clk 0:02:16]} 13... Qxe7 {[%clk 0:02:23.6]}
14. Qxa5 {[%clk 0:02:16.4]} 14... Bb7 {[%clk 0:02:20.2]} 15. f3 {[%clk 0:02:12]}
15... Rfc8 {[%clk 0:02:08.4]} 16. Kb1 {[%clk 0:02:09.6]} 16... Ne5 {[%clk
0:01:49.6]} 17. h4 {[%clk 0:01:40.1]} 17... Nxf3 {[%clk 0:01:18.6]} 18. Nxf3
{[%clk 0:01:37.7]} 18... Qxe4 {[%clk 0:01:13.6]} 19. Qd2 {[%clk 0:01:34.5]}
19... Qxf3 {[%clk 0:01:10.8]} 20. Bg2 {[%clk 0:01:33]} 20... Rxc2 {[%clk
0:00:27.7]} 21. Qxc2 {[%clk 0:01:30.6]} 21... Qxe3 {[%clk 0:00:18.8]} 22. Bxb7
{[%clk 0:01:30.1]} 22... Re8 {[%clk 0:00:18.7]} 23. Bc6 {[%clk 0:01:21.3]} 23...
Rc8 {[%clk 0:00:16.6]} 24. Rge1 {[%clk 0:01:18.8]} 24... Qb6 {[%clk 0:00:15.2]}
25. Re8+ {[%clk 0:01:10.7]} 25... Rxe8 {[%clk 0:00:14.7]} 26. Bxe8 {[%clk
0:01:11.6]} 26... Qb7 {[%clk 0:00:11.4]} 27. Rf1 {[%clk 0:01:06.3]} 27... Kh8
{[%clk 0:00:06.4]} 28. Bxf7 {[%clk 0:01:05.1]} 28... b4 {[%clk 0:00:04.9]} 29.
Be6 {[%clk 0:01:00.8]} 29... a5 {[%clk 0:00:03.7]} 30. Qc8+ {[%clk 0:01:00.8]}
30... Qxc8 {[%clk 0:00:02]} 31. Bxc8 {[%clk 0:01:01.7]} 31... a4 {[%clk
0:00:02]} 1-0

[Event "Early-Titled-Tuesday-Blitz-September-12-2023"]
[Site "Chess.com"]
[Date "2023.09.12"]
[Round "2"]
[White "scarabee43"]
[Black "FoxOnTheRun97"]
[Result "1-0"]
[WhiteElo "2797"]
[BlackElo "2545"]
[TimeControl "180+1"]
[EndTime "8:17:09 PDT"]
[Termination "scarabee43 won by resignation"]

1. d4 {[%clk 0:03:00.9]} 1... Nf6 {[%clk 0:02:59.7]} 2. c4 {[%clk 0:03:01.4]}
2... e6 {[%clk 0:02:59.6]} 3. Nf3 {[%clk 0:03:01.6]} 3... d5 {[%clk 0:02:59.5]}
4. Nc3 {[%clk 0:03:01.9]} 4... Bb4 {[%clk 0:02:58.9]} 5. cxd5 {[%clk 0:02:57.8]}
5... exd5 {[%clk 0:02:58.6]} 6. Bg5 {[%clk 0:02:57.9]} 6... c6 {[%clk 0:02:58]}
7. e3 {[%clk 0:02:57.7]} 7... h6 {[%clk 0:02:57.3]} 8. Bh4 {[%clk 0:02:48]} 8...
O-O {[%clk 0:02:54.7]} 9. Bd3 {[%clk 0:02:46.6]} 9... Re8 {[%clk 0:02:52.8]} 10.
O-O {[%clk 0:02:46]} 10... Nbd7 {[%clk 0:02:49]} 11. h3 {[%clk 0:02:40.9]} 11...
Be7 {[%clk 0:02:41.1]} 12. Qc2 {[%clk 0:02:34.1]} 12... Nh5 {[%clk 0:02:13.2]}
13. Bxe7 {[%clk 0:02:32.4]} 13... Qxe7 {[%clk 0:02:14.1]} 14. Rab1 {[%clk
0:02:17.7]} 14... a5 {[%clk 0:02:07.8]} 15. a3 {[%clk 0:02:17.1]} 15... Nf8
{[%clk 0:01:54.8]} 16. b4 {[%clk 0:02:13.1]} 16... Ne6 {[%clk 0:01:41.8]} 17. b5
{[%clk 0:02:10.1]} 17... Qxa3 {[%clk 0:01:35.6]} 18. Ne5 {[%clk 0:02:07.9]}
18... Qd6 {[%clk 0:01:26.9]} 19. Bh7+ {[%clk 0:02:06.8]} 19... Kf8 {[%clk
0:01:19.4]} 20. bxc6 {[%clk 0:02:03.1]} 20... bxc6 {[%clk 0:01:17.4]} 21. Nxf7
{[%clk 0:02:02.1]} 21... Kxf7 {[%clk 0:01:09.8]} 22. Bg6+ {[%clk 0:01:58.5]}
22... Kf8 {[%clk 0:01:09]} 23. Bxh5 {[%clk 0:01:49]} 23... Re7 {[%clk
0:01:06.9]} 24. Qh7 {[%clk 0:01:48.9]} 24... Rb7 {[%clk 0:00:53]} 25. Qh8+
{[%clk 0:01:47]} 25... Ke7 {[%clk 0:00:52.1]} 26. Rxb7+ {[%clk 0:01:43.9]} 26...
Bxb7 {[%clk 0:00:53]} 27. Qh7 {[%clk 0:01:39.3]} 27... a4 {[%clk 0:00:46.2]} 28.
Qg6 {[%clk 0:01:37.7]} 28... a3 {[%clk 0:00:42.4]} 29. Qf7+ {[%clk 0:01:37.3]}
29... Kd8 {[%clk 0:00:42.6]} 30. Qxb7 {[%clk 0:01:36.9]} 30... Rb8 {[%clk
0:00:38.6]} 31. Qa7 {[%clk 0:01:36.3]} 31... Rb3 {[%clk 0:00:36.2]} 32. Rc1
{[%clk 0:01:34.8]} 32... Nc7 {[%clk 0:00:34.5]} 33. Qa4 {[%clk 0:01:32.2]} 33...
Rb2 {[%clk 0:00:28.6]} 34. Rc2 {[%clk 0:01:28.3]} 34... Rxc2 {[%clk 0:00:21.3]}
35. Qxc2 {[%clk 0:01:28.1]} 35... Qb4 {[%clk 0:00:21.9]} 36. Be2 {[%clk
0:01:23.5]} 36... Na8 {[%clk 0:00:19.9]} 37. g3 {[%clk 0:01:18.5]} 37... Nb6
{[%clk 0:00:20]} 38. Na2 {[%clk 0:01:17.5]} 38... Qe1+ {[%clk 0:00:18.2]} 39.
Kg2 {[%clk 0:01:17.2]} 39... Kc7 {[%clk 0:00:18.6]} 40. Bb5 {[%clk 0:01:16.8]}
40... Nc4 {[%clk 0:00:15.3]} 41. Bxc4 {[%clk 0:01:16.5]} 41... dxc4 {[%clk
0:00:15.8]} 42. Qxc4 {[%clk 0:01:17.2]} 42... Qd2 {[%clk 0:00:14.2]} 43. d5
{[%clk 0:01:15.7]} 43... Qxd5+ {[%clk 0:00:12.7]} 44. Qxd5 {[%clk 0:01:16.2]}
44... cxd5 {[%clk 0:00:13.6]} 45. Kf3 {[%clk 0:01:16.6]} 45... Kd6 {[%clk
0:00:14.3]} 46. Ke2 {[%clk 0:01:17.1]} 46... Kc5 {[%clk 0:00:14.9]} 47. Kd3
{[%clk 0:01:17.7]} 1-0

[Event "Early-Titled-Tuesday-Blitz-September-12-2023"]
[Site "Chess.com"]
[Date "2023.09.12"]
[Round "2"]
[White "ShiroglanTalibov"]
[Black "themind1hunter"]
[Result "1-0"]
[WhiteElo "2842"]
[BlackElo "2552"]
[TimeControl "180+1"]
[EndTime "8:17:15 PDT"]
[Termination "ShiroglanTalibov won by resignation"]

1. e4 {[%clk 0:02:54.9]} 1... c5 {[%clk 0:02:58.5]} 2. Nf3 {[%clk 0:02:55]} 2...
d6 {[%clk 0:02:58.9]} 3. d4 {[%clk 0:02:53]} 3... cxd4 {[%clk 0:02:59]} 4. Nxd4
{[%clk 0:02:52.4]} 4... Nf6 {[%clk 0:02:59.6]} 5. Nc3 {[%clk 0:02:46.7]} 5... a6
{[%clk 0:02:58.2]} 6. f3 {[%clk 0:02:47]} 6... e5 {[%clk 0:02:57.1]} 7. Nb3
{[%clk 0:02:45.6]} 7... Be6 {[%clk 0:02:56.3]} 8. Be3 {[%clk 0:02:44.4]} 8... h5
{[%clk 0:02:56.2]} 9. Qd2 {[%clk 0:02:40.8]} 9... Nbd7 {[%clk 0:02:55.7]} 10.
Nd5 {[%clk 0:02:35.4]} 10... Bxd5 {[%clk 0:02:55.7]} 11. exd5 {[%clk 0:02:36.3]}
11... g6 {[%clk 0:02:56.3]} 12. O-O-O {[%clk 0:02:34.4]} 12... Bg7 {[%clk
0:02:56.6]} 13. Kb1 {[%clk 0:02:28.8]} 13... Rc8 {[%clk 0:02:55.3]} 14. c4
{[%clk 0:02:28.5]} 14... O-O {[%clk 0:02:50.3]} 15. Be2 {[%clk 0:02:21.3]} 15...
e4 {[%clk 0:02:47.6]} 16. f4 {[%clk 0:02:18.2]} 16... Nb6 {[%clk 0:02:37.7]} 17.
Rc1 {[%clk 0:02:15.6]} 17... Na4 {[%clk 0:02:25.5]} 18. Bd4 {[%clk 0:02:10.6]}
18... b6 {[%clk 0:02:17.4]} 19. f5 {[%clk 0:02:01.9]} 19... Nc5 {[%clk
0:02:12.4]} 20. Nxc5 {[%clk 0:01:59]} 20... bxc5 {[%clk 0:02:11.4]} 21. Bc3
{[%clk 0:01:58.6]} 21... Kh7 {[%clk 0:01:59.8]} 22. g4 {[%clk 0:01:42.3]} 22...
hxg4 {[%clk 0:01:57.6]} 23. h3 {[%clk 0:01:39.1]} 23... g3 {[%clk 0:01:57.9]}
24. Rcg1 {[%clk 0:01:13.1]} 24... Qd7 {[%clk 0:00:44.7]} 25. Bg4 {[%clk
0:00:53]} 25... Bh6 {[%clk 0:00:34.9]} 26. Qe2 {[%clk 0:00:46.1]} 26... gxf5
{[%clk 0:00:30]} 27. Bxf6 {[%clk 0:00:41.5]} 27... fxg4 {[%clk 0:00:30.9]} 28.
Qxe4+ {[%clk 0:00:38.6]} 28... Kg8 {[%clk 0:00:29.6]} 29. Rxg3 {[%clk
0:00:38.5]} 29... Rfe8 {[%clk 0:00:27.5]} 30. Rxg4+ {[%clk 0:00:35.7]} 1-0

[Event "Early-Titled-Tuesday-Blitz-September-12-2023"]
[Site "Chess.com"]
[Date "2023.09.12"]
[Round "2"]
[White "surrenderPLS"]
[Black "NotFischer"]
[Result "1-0"]
[WhiteElo "2513"]
[BlackElo "2282"]
[TimeControl "180+1"]
[EndTime "8:17:15 PDT"]
[Termination "surrenderPLS won by resignation"]

1. e4 {[%clk 0:03:00.9]} 1... d5 {[%clk 0:02:59.6]} 2. exd5 {[%clk 0:03:00.5]}
2... Qxd5 {[%clk 0:03:00.5]} 3. Nc3 {[%clk 0:03:00.8]} 3... Qd6 {[%clk
0:03:00.4]} 4. d4 {[%clk 0:03:01.1]} 4... Nf6 {[%clk 0:03:00.4]} 5. Nf3 {[%clk
0:03:01.7]} 5... c6 {[%clk 0:03:00]} 6. Ne5 {[%clk 0:02:59.3]} 6... Nbd7 {[%clk
0:02:59]} 7. f4 {[%clk 0:02:57.8]} 7... g6 {[%clk 0:02:49.1]} 8. Bc4 {[%clk
0:02:57.2]} 8... Nxe5 {[%clk 0:02:23.9]} 9. fxe5 {[%clk 0:02:52.1]} 9... Qb4
{[%clk 0:02:23.9]} 10. Bxf7+ {[%clk 0:01:47]} 10... Kxf7 {[%clk 0:02:24.8]} 11.
exf6 {[%clk 0:01:46.7]} 11... exf6 {[%clk 0:02:25.6]} 12. O-O {[%clk 0:01:46.3]}
12... Kg7 {[%clk 0:02:08.3]} 13. Ne4 {[%clk 0:01:18.7]} 13... Be7 {[%clk
0:02:06.7]} 14. c3 {[%clk 0:01:16.5]} 14... Qb6 {[%clk 0:02:06.3]} 15. Qf3
{[%clk 0:01:08.3]} 15... Rf8 {[%clk 0:01:54.7]} 16. Qe3 {[%clk 0:00:51.9]} 16...
Kg8 {[%clk 0:01:38.3]} 17. Ng5 {[%clk 0:00:33.1]} 17... fxg5 {[%clk 0:01:24.6]}
18. Qxe7 {[%clk 0:00:32.6]} 18... Rxf1+ {[%clk 0:01:25.5]} 19. Kxf1 {[%clk
0:00:33.5]} 19... Bg4 {[%clk 0:01:19]} 20. h3 {[%clk 0:00:31.5]} 20... Rf8+
{[%clk 0:01:17.9]} 21. Kg1 {[%clk 0:00:31.8]} 21... Bf5 {[%clk 0:00:59.7]} 22.
Bxg5 {[%clk 0:00:30.5]} 1-0

[Event "Early-Titled-Tuesday-Blitz-September-12-2023"]
[Site "Chess.com"]
[Date "2023.09.12"]
[Round "2"]
[White "Eloist"]
[Black "Dewarfd"]
[Result "1-0"]
[WhiteElo "2470"]
[BlackElo "2137"]
[TimeControl "180+1"]
[EndTime "8:17:16 PDT"]
[Termination "Eloist won by checkmate"]

1. e4 {[%clk 0:03:00.9]} 1... e5 {[%clk 0:03:00.3]} 2. Nf3 {[%clk 0:02:58.9]}
2... Nc6 {[%clk 0:03:00]} 3. Bc4 {[%clk 0:02:58.8]} 3... Nf6 {[%clk 0:02:59.8]}
4. d3 {[%clk 0:02:58.7]} 4... Be7 {[%clk 0:02:58.1]} 5. O-O {[%clk 0:02:58.5]}
5... O-O {[%clk 0:02:57.1]} 6. Re1 {[%clk 0:02:58.3]} 6... a6 {[%clk 0:02:57.1]}
7. a4 {[%clk 0:02:58.3]} 7... h6 {[%clk 0:02:56.6]} 8. a5 {[%clk 0:02:57.3]}
8... d6 {[%clk 0:02:50.3]} 9. c3 {[%clk 0:02:55.8]} 9... Bg4 {[%clk 0:02:50.1]}
10. h3 {[%clk 0:02:55.2]} 10... Bxf3 {[%clk 0:02:49.1]} 11. Qxf3 {[%clk
0:02:54.6]} 11... Qd7 {[%clk 0:02:38.8]} 12. Nd2 {[%clk 0:02:53.6]} 12... Rad8
{[%clk 0:02:38.8]} 13. Nf1 {[%clk 0:02:44.6]} 13... d5 {[%clk 0:02:37.9]} 14.
exd5 {[%clk 0:02:41.2]} 14... Nxd5 {[%clk 0:02:38.3]} 15. Ng3 {[%clk 0:02:31.1]}
15... Bf6 {[%clk 0:02:24]} 16. Bxh6 {[%clk 0:02:19.5]} 16... gxh6 {[%clk
0:02:10.1]} 17. Bxd5 {[%clk 0:02:18.5]} 17... Qxd5 {[%clk 0:02:07.6]} 18. Qxf6
{[%clk 0:02:18.2]} 18... Qe6 {[%clk 0:02:05.4]} 19. Qf3 {[%clk 0:01:55.1]} 19...
Qg6 {[%clk 0:01:57.7]} 20. Nf5 {[%clk 0:01:50.2]} 20... Rd7 {[%clk 0:01:49.1]}
21. Re4 {[%clk 0:01:48.7]} 21... Qh7 {[%clk 0:00:27.6]} 22. Rg4+ {[%clk
0:01:41.6]} 22... Kh8 {[%clk 0:00:26.9]} 23. Rg7 {[%clk 0:01:36.8]} 23... Qxg7
{[%clk 0:00:13]} 24. Nxg7 {[%clk 0:01:36.4]} 24... f5 {[%clk 0:00:12.2]} 25.
Nxf5 {[%clk 0:01:32.2]} 25... Rdf7 {[%clk 0:00:12.3]} 26. g4 {[%clk 0:01:31.8]}
26... Ne7 {[%clk 0:00:13.2]} 27. Re1 {[%clk 0:01:20.6]} 27... Nxf5 {[%clk
0:00:13.5]} 28. gxf5 {[%clk 0:01:20.5]} 28... Rxf5 {[%clk 0:00:14.4]} 29. Qe3
{[%clk 0:01:13.5]} 29... Rg8+ {[%clk 0:00:11.1]} 30. Kh1 {[%clk 0:01:04]} 30...
Rfg5 {[%clk 0:00:09.9]} 31. f4 {[%clk 0:01:01.7]} 31... exf4 {[%clk 0:00:08]}
32. Qxf4 {[%clk 0:01:01.5]} 32... Rg2 {[%clk 0:00:05.7]} 33. Qxh6# {[%clk
0:01:00.7]} 1-0

[Event "Early-Titled-Tuesday-Blitz-September-12-2023"]
[Site "Chess.com"]
[Date "2023.09.12"]
[Round "2"]
[White "TomLiu777"]
[Black "Zurability"]
[Result "0-1"]
[WhiteElo "2424"]
[BlackElo "2802"]
[TimeControl "180+1"]
[EndTime "8:17:18 PDT"]
[Termination "Zurability won on time"]

1. c4 {[%clk 0:02:21.6]} 1... e6 {[%clk 0:02:59.2]} 2. Nc3 {[%clk 0:02:20.3]}
2... d5 {[%clk 0:02:59.5]} 3. d4 {[%clk 0:02:16.9]} 3... Nf6 {[%clk 0:02:59.6]}
4. Bg5 {[%clk 0:02:15.1]} 4... Nbd7 {[%clk 0:02:58.7]} 5. cxd5 {[%clk
0:02:13.9]} 5... exd5 {[%clk 0:02:59.6]} 6. e3 {[%clk 0:02:13.5]} 6... c6 {[%clk
0:02:59.3]} 7. Bd3 {[%clk 0:02:13.9]} 7... h6 {[%clk 0:02:59.6]} 8. Bh4 {[%clk
0:01:57.4]} 8... Be7 {[%clk 0:02:58.6]} 9. Qc2 {[%clk 0:01:48]} 9... O-O {[%clk
0:02:58.2]} 10. Nge2 {[%clk 0:01:42.6]} 10... Re8 {[%clk 0:02:58.2]} 11. O-O
{[%clk 0:01:40.6]} 11... Ne4 {[%clk 0:02:52.2]} 12. Bxe7 {[%clk 0:01:41.5]}
12... Qxe7 {[%clk 0:02:52.4]} 13. Rae1 {[%clk 0:01:39.1]} 13... Nd6 {[%clk
0:02:46.8]} 14. Ng3 {[%clk 0:01:36]} 14... Nf6 {[%clk 0:02:45.4]} 15. f3 {[%clk
0:01:35.1]} 15... h5 {[%clk 0:02:45.8]} 16. e4 {[%clk 0:01:32.7]} 16... h4
{[%clk 0:02:45.4]} 17. Nf5 {[%clk 0:01:26]} 17... Bxf5 {[%clk 0:02:37.2]} 18.
exf5 {[%clk 0:01:26.5]} 18... Qxe1 {[%clk 0:02:37.6]} 19. Rxe1 {[%clk
0:01:26.8]} 19... Rxe1+ {[%clk 0:02:38.5]} 20. Kf2 {[%clk 0:01:27.2]} 20... Rae8
{[%clk 0:02:35.5]} 21. Ne2 {[%clk 0:01:19.8]} 21... Rh1 {[%clk 0:02:30.9]} 22.
h3 {[%clk 0:01:12.7]} 22... Nd7 {[%clk 0:02:10.6]} 23. Qd2 {[%clk 0:01:05.6]}
23... Nc4 {[%clk 0:02:04.9]} 24. Bxc4 {[%clk 0:01:03.6]} 24... dxc4 {[%clk
0:02:04.9]} 25. Qa5 {[%clk 0:00:39.8]} 25... Rb1 {[%clk 0:02:02.1]} 26. Qc7
{[%clk 0:00:34]} 26... Nb6 {[%clk 0:01:40.5]} 27. Nf4 {[%clk 0:00:11.9]} 27...
Rxb2+ {[%clk 0:01:19.6]} 28. Kg1 {[%clk 0:00:10.6]} 28... c3 {[%clk 0:01:19.9]}
29. Nd3 {[%clk 0:00:07.1]} 29... c2 {[%clk 0:01:17.1]} 30. Kh2 {[%clk
0:00:04.8]} 30... Rb1 {[%clk 0:01:15.3]} 31. Qf4 {[%clk 0:00:04.4]} 31... Rd1
{[%clk 0:01:10.2]} 32. f6 {[%clk 0:00:02.8]} 32... Nd5 {[%clk 0:01:06.3]} 33.
Qg5 {[%clk 0:00:01.9]} 33... Nxf6 {[%clk 0:01:06.6]} 34. f4 {[%clk 0:00:01.4]}
34... Rxd3 {[%clk 0:01:06.1]} 0-1